bitfinex/quotes_BTCUSD_20240620
["timestamp","ask_amount","ask_price","bid_price","bid_amount"]
[1718864596337,0.09561171,65597.0,65596.0,0.2597675]
[1718864596666,0.02700112,65597.0,65596.0,0.2797675]
[1718864596893,0.02500112,65597.0,65596.0,0.2597675]
[1718864597492,0.06947253,65599.0,65598.0,0.1073195]
[1718864597844,0.09417614,65599.0,65598.0,0.1073195]
[1718864598965,0.09517614,65599.0,65598.0,0.1093195]
[1718864599176,0.02756361,65599.0,65598.0,0.1103195]
[1718864600273,0.02756361,65599.0,65598.0,1.30261062]
[1718864600475,0.02756361,65599.0,65598.0,1.66649762]
[1718864601630,0.02656361,65599.0,65598.0,1.66449762]
[1718864601836,0.02756361,65599.0,65598.0,1.67249762]
[1718864602169,0.02756361,65599.0,65598.0,1.77249762]
[1718864602372,0.02756361,65599.0,65598.0,2.07738462]
[1718864602552,0.00286,65599.0,65598.0,2.07738462]
[1718864602854,0.00186,65599.0,65598.0,2.07638462]
[1718864603251,0.00286,65599.0,65598.0,2.08338462]
[1718864603601,0.00286,65599.0,65598.0,2.24418462]
[1718864603851,0.00286,65599.0,65598.0,2.29418462]
[1718864606660,0.00286,65599.0,65598.0,2.59907162]
[1718864609685,0.00286,65599.0,65598.0,2.43807162]
[1718864609889,0.00286,65599.0,65598.0,2.49707162]
[1718864610768,0.00286,65599.0,65598.0,1.61749762]
[1718864612704,0.00286,65599.0,65598.0,0.42532362]
[1718864613311,0.00286,65599.0,65598.0,0.1203195]
[1718864613312,0.17862127,65599.0,65598.0,0.1203195]
[1718864614797,1.65046727,65599.0,65598.0,0.0703195]
[1718864615002,1.65046727,65599.0,65598.0,0.04748]
[1718864615627,1.72466727,65599.0,65598.0,0.03448]
[1718864615923,1.72666727,65599.0,65598.0,0.0683195]
[1718864616294,1.72566727,65599.0,65598.0,0.0633195]
[1718864616676,1.65046727,65599.0,65598.0,0.0643195]
[1718864617177,1.65046727,65599.0,65598.0,0.04148]
[1718864619026,1.627147,65599.0,65598.0,0.04148]
[1718864619226,1.65100078,65599.0,65598.0,0.04148]
[1718864620423,1.65100078,65599.0,65598.0,0.0593195]
[1718864620651,1.65100078,65599.0,65598.0,0.04148]
[1718864620890,1.65100078,65599.0,65598.0,0.0593195]
[1718864621080,1.65100078,65599.0,65598.0,0.0643195]
[1718864621522,1.34611878,65599.0,65598.0,0.0643195]
[1718864621728,0.17915478,65599.0,65598.0,0.1143195]
[1718864622598,0.02671378,65599.0,65598.0,0.1143195]
[1718864624520,0.02671378,65599.0,65598.0,0.1343195]
[1718864625353,0.02671378,65599.0,65598.0,0.1143195]
[1718864626093,0.02713676,65599.0,65598.0,0.1143195]
[1718864626557,0.02675649,65599.0,65598.0,0.1143195]
[1718864627620,0.02675649,65599.0,65598.0,0.1343195]
[1718864627796,0.02675649,65599.0,65598.0,0.1143195]
[1718864628165,0.02680722,65599.0,65598.0,0.1143195]
[1718864628577,0.02680722,65599.0,65598.0,0.2867625]
[1718864630035,0.02695179,65599.0,65598.0,0.2867625]
[1718864630454,0.02695179,65599.0,65598.0,0.8965365]
[1718864630679,0.02695179,65599.0,65598.0,1.4922365]
[1718864630897,0.02695179,65599.0,65598.0,1.94968462]
[1718864631993,0.02595179,65599.0,65598.0,1.94968462]
[1718864632399,0.02695179,65599.0,65598.0,1.95468462]
[1718864632624,0.02695179,65599.0,65598.0,0.2917625]
[1718864633307,0.02595179,65599.0,65598.0,0.2847625]
[1718864633643,0.02695179,65599.0,65598.0,0.1193195]
[1718864633877,0.48427479,65599.0,65598.0,0.04648]
[1718864634113,0.48427479,65599.0,65598.0,0.0693195]
[1718864634114,0.78915679,65599.0,65598.0,0.0693195]
[1718864634313,1.09403879,65599.0,65598.0,0.0693195]
[1718864634901,1.09303879,65599.0,65598.0,0.0643195]
[1718864635328,1.16923879,65599.0,65598.0,0.04548]
[1718864635528,1.16923879,65599.0,65598.0,0.0683195]
[1718864635724,1.16923879,65599.0,65598.0,0.0643195]
[1718864635883,1.16823879,65599.0,65598.0,0.0573195]
[1718864636289,1.16923879,65599.0,65598.0,0.0633195]
[1718864636477,1.16923879,65599.0,65598.0,0.0573195]
[1718864636821,1.17123879,65599.0,65598.0,0.0573195]
[1718864637228,1.24271028,65599.0,65598.0,0.0573195]
[1718864637642,1.23971028,65599.0,65598.0,0.0573195]
[1718864638033,1.24271028,65599.0,65598.0,0.0573195]
[1718864638998,1.23971028,65599.0,65598.0,0.0523195]
[1718864639253,1.23971028,65599.0,65598.0,0.03448]
[1718864639442,1.24071028,65599.0,65598.0,0.03448]
[1718864640035,1.24271028,65599.0,65598.0,0.03448]
[1718864640233,1.23671028,65599.0,65598.0,0.03448]
[1718864640443,0.762227,65597.0,65596.0,0.0678395]
[1718864640644,0.47550528,65599.0,65594.0,0.000946]
[1718864640822,0.457336,65597.0,65596.0,0.03448]
[1718864641024,0.78631879,65597.0,65596.0,0.03448]
[1718864641647,0.78631879,65597.0,65596.0,0.03648]
[1718864641852,1.09120979,65597.0,65596.0,0.03648]
[1718864642513,1.15972229,65597.0,65596.0,0.03948]
[1718864642734,1.09120979,65597.0,65596.0,0.03648]
[1718864643676,1.09320979,65597.0,65596.0,0.03648]
[1718864643875,1.09320979,65597.0,65596.0,0.03448]
[1718864644223,1.09620979,65597.0,65596.0,0.03448]
[1718864644720,1.09320979,65597.0,65596.0,0.03448]
[1718864645078,1.09620979,65597.0,65596.0,0.03448]
[1718864645417,1.09420979,65597.0,65596.0,0.03448]
[1718864645621,1.22370718,65597.0,65596.0,0.03448]
[1718864646399,1.22170718,65597.0,65596.0,0.03448]
[1718864646749,1.22070718,65597.0,65596.0,0.03448]
[1718864646971,1.22370718,65597.0,65596.0,0.03448]
[1718864647577,1.22370718,65597.0,65596.0,0.0523195]
[1718864648025,1.22370718,65597.0,65596.0,0.03448]
[1718864648402,1.15520979,65597.0,65596.0,0.0573195]
[1718864649265,1.22370718,65597.0,65596.0,0.0523195]
[1718864650218,1.22370718,65597.0,65596.0,0.03448]
[1718864650685,1.15520979,65597.0,65596.0,0.03448]
[1718864650873,1.24654432,65597.0,65596.0,0.0423195]
[1718864651116,1.15520979,65597.0,65596.0,0.0423195]
[1718864651310,1.24417994,65597.0,65596.0,0.0423195]
[1718864651581,1.24417994,65597.0,65596.0,0.02448]
[1718864652297,1.15285196,65597.0,65596.0,0.02448]
[1718864652512,1.24419756,65597.0,65596.0,0.02448]
[1718864653271,1.15285196,65597.0,65596.0,0.02448]
[1718864654413,1.09385196,65597.0,65596.0,0.0473195]
[1718864654613,0.88033436,65597.0,65596.0,0.0473195]
[1718864654865,0.78896096,65597.0,65596.0,0.0473195]
[1718864655069,0.88033378,65597.0,65596.0,0.0473195]
[1718864655280,0.78896096,65597.0,65596.0,0.0473195]
[1718864655484,0.88035257,65597.0,65596.0,0.0473195]
[1718864655643,0.78896096,65597.0,65596.0,0.0473195]
[1718864656265,0.90320122,65597.0,65596.0,0.0473195]
[1718864656637,0.78896096,65597.0,65596.0,0.0473195]
[1718864657225,0.77612002,65597.0,65596.0,0.0473195]
[1718864657461,0.89036028,65597.0,65596.0,0.02448]
[1718864657677,1.08101102,65597.0,65596.0,0.02448]
[1718864657896,0.77612002,65597.0,65596.0,0.02448]
[1718864658264,0.77612002,65597.0,65596.0,0.0423195]
[1718864658625,0.77612002,65597.0,65596.0,0.02448]
[1718864658832,0.77612002,65597.0,65596.0,0.0423195]
[1718864659226,0.85232002,65597.0,65596.0,0.0423195]
[1718864659463,0.85232002,65597.0,65596.0,0.02448]
[1718864659641,1.15721102,65597.0,65596.0,0.02448]
[1718864659843,0.85232002,65597.0,65596.0,0.02448]
[1718864660456,1.15721102,65597.0,65596.0,0.02448]
[1718864661078,1.15721102,65597.0,65596.0,0.0423195]
[1718864661285,0.85232002,65597.0,65596.0,0.0423195]
[1718864661475,0.85232002,65597.0,65596.0,0.02448]
[1718864664257,0.85232002,65597.0,65596.0,0.0423195]
[1718864664429,0.85232002,65597.0,65596.0,0.0473195]
[1718864664834,0.96660717,65597.0,65596.0,0.0423195]
[1718864665141,0.85232002,65597.0,65596.0,0.0473195]
[1718864665340,0.21722008,65597.0,65596.0,0.6450195]
[1718864665570,0.17150122,65597.0,65596.0,0.7974675]
[1718864665717,0.10293396,65597.0,65596.0,0.6450195]
[1718864666128,0.10293396,65597.0,65596.0,1.71510234]
[1718864666129,0.09993396,65597.0,65596.0,1.71510234]
[1718864666334,0.09993396,65597.0,65596.0,2.01999834]
[1718864666536,0.09993396,65597.0,65596.0,2.28679834]
[1718864666537,0.02273396,65597.0,65596.0,2.28679834]
[1718864666776,0.00086,65599.0,65598.0,1.6678365]
[1718864666979,0.00086,65599.0,65598.0,2.22528462]
[1718864667186,0.00086,65599.0,65598.0,2.12328462]
[1718864668464,0.00186,65599.0,65598.0,2.12928462]
[1718864669267,0.00186,65599.0,65598.0,2.23128462]
[1718864669537,0.00286,65599.0,65598.0,2.23628462]
[1718864669948,0.00286,65599.0,65598.0,2.13428462]
[1718864670927,0.00286,65599.0,65598.0,2.59117162]
[1718864671121,0.00286,65599.0,65598.0,2.56417162]
[1718864671528,0.00286,65599.0,65598.0,2.61417162]
[1718864671903,0.00286,65599.0,65598.0,2.51417162]
[1718864672102,0.00286,65599.0,65598.0,2.61417162]
[1718864676437,0.00286,65599.0,65598.0,2.56417162]
[1718864676640,0.00286,65599.0,65598.0,2.61417162]
[1718864679517,0.00286,65599.0,65598.0,2.13428462]
[1718864679686,0.00286,65599.0,65598.0,2.19328462]
[1718864680282,0.00286,65599.0,65598.0,2.29528462]
[1718864680497,0.00286,65599.0,65598.0,2.19328462]
[1718864681581,0.00286,65599.0,65598.0,2.29528462]
[1718864681874,0.00286,65599.0,65598.0,2.24528462]
[1718864682688,0.00286,65599.0,65598.0,2.65017162]
[1718864682931,0.00286,65599.0,65598.0,2.67317162]
[1718864683365,0.00086,65618.0,65617.0,0.5745175]
[1718864683569,0.00086,65618.0,65617.0,1.37467862]
[1718864684111,0.0169114,65618.0,65617.0,1.37467862]
[1718864684314,0.00086,65618.0,65617.0,1.37467862]
[1718864684517,0.00086,65618.0,65617.0,1.37667862]
[1718864685040,0.01832469,65618.0,65617.0,1.37667862]
[1718864685607,0.01832469,65618.0,65617.0,1.37967862]
[1718864691813,0.01832469,65618.0,65617.0,1.68447762]
[1718864692354,0.01884673,65618.0,65617.0,1.68447762]
[1718864693744,0.01884673,65618.0,65617.0,1.37967862]
[1718864693997,0.01884673,65618.0,65617.0,1.68447762]
[1718864695655,0.01983743,65618.0,65617.0,1.68447762]
[1718864703297,0.01983743,65618.0,65617.0,1.68247762]
[1718864703664,0.01983743,65618.0,65617.0,1.67947762]
[1718864703785,0.02183743,65618.0,65617.0,1.69247762]
[1718864703984,0.02183743,65618.0,65617.0,2.36007662]
[1718864704243,0.00286,65618.0,65617.0,2.36007662]
[1718864704433,0.00286,65618.0,65617.0,2.38307662]
[1718864704619,0.00286,65618.0,65617.0,2.68787562]
[1718864705022,0.00186,65618.0,65617.0,2.68087562]
[1718864705429,0.00086,65618.0,65617.0,2.61587562]
[1718864705598,0.00086,65618.0,65617.0,2.67487562]
[1718864705803,0.00286,65618.0,65617.0,2.68987562]
[1718864707846,0.00286,65618.0,65617.0,2.63087562]
[1718864708083,0.00286,65618.0,65617.0,2.68987562]
[1718864709286,0.00286,65618.0,65617.0,2.22407662]
[1718864709483,0.00286,65618.0,65617.0,2.28407662]
[1718864709595,0.00286,65618.0,65617.0,2.28507662]
[1718864710233,0.00286,65618.0,65617.0,2.22607662]
[1718864710443,0.00286,65618.0,65617.0,2.68987562]
[1718864710643,0.00286,65618.0,65617.0,2.56687562]
[1718864710882,0.00286,65618.0,65617.0,2.31207662]
[1718864712091,0.00286,65618.0,65617.0,2.15307662]
[1718864712375,0.00286,65618.0,65617.0,2.15107662]
[1718864712571,0.00286,65618.0,65617.0,2.15307662]
[1718864712777,0.00286,65618.0,65617.0,2.21007662]
[1718864713094,0.00286,65618.0,65617.0,2.31207662]
[1718864714694,0.00286,65618.0,65617.0,2.25307662]
[1718864714894,0.00286,65618.0,65617.0,2.31207662]
[1718864715103,0.00286,65618.0,65617.0,0.72207862]
[1718864715441,0.155257,65618.0,65617.0,0.1123195]
[1718864715650,1.043051,65618.0,65617.0,0.1123195]
[1718864716064,1.042051,65618.0,65617.0,0.1043195]
[1718864716474,1.043051,65618.0,65617.0,0.1183195]
[1718864716685,0.58586,65618.0,65617.0,0.1183195]
[1718864716887,0.58586,65618.0,65617.0,0.1043195]
[1718864716888,0.58486,65618.0,65617.0,0.1043195]
[1718864717269,0.737257,65618.0,65617.0,0.1033195]
[1718864717673,0.738257,65618.0,65617.0,0.1113195]
[1718864717917,0.738257,65618.0,65617.0,0.1033195]
[1718864718290,0.739257,65618.0,65617.0,0.1113195]
[1718864718495,1.348845,65618.0,65617.0,0.08848]
[1718864718984,1.348845,65618.0,65617.0,0.1063195]
[1718864720139,1.712639,65618.0,65617.0,0.03848]
[1718864721093,1.710639,65618.0,65617.0,0.03048]
[1718864721301,1.72733158,65618.0,65617.0,0.03048]
[1718864721832,1.72633158,65618.0,65617.0,0.02448]
[1718864722244,1.710639,65618.0,65617.0,0.02448]
[1718864722451,1.716639,65618.0,65617.0,0.02448]
[1718864722652,1.715639,65618.0,65617.0,0.02448]
[1718864723063,1.724639,65618.0,65617.0,0.02448]
[1718864723626,1.719639,65618.0,65617.0,0.02448]
[1718864723821,1.81092724,65618.0,65617.0,0.02448]
[1718864724109,1.719639,65618.0,65617.0,0.02448]
[1718864724427,1.80091924,65618.0,65617.0,0.02448]
[1718864724680,1.80491924,65618.0,65617.0,0.02448]
[1718864725034,1.80991924,65618.0,65617.0,0.02448]
[1718864725550,1.8089174,65618.0,65617.0,0.02448]
[1718864725958,1.8139174,65618.0,65617.0,0.02448]
[1718864727775,1.722639,65618.0,65617.0,0.02448]
[1718864727979,1.8139174,65618.0,65617.0,0.02448]
[1718864728184,1.8059174,65618.0,65617.0,0.02448]
[1718864728387,1.8089174,65618.0,65617.0,0.02448]
[1718864728592,1.717639,65618.0,65617.0,0.02448]
[1718864728798,1.712639,65618.0,65617.0,0.02448]
[1718864729271,1.709639,65618.0,65617.0,0.02448]
[1718864729393,1.712639,65618.0,65617.0,0.02448]
[1718864729623,1.717639,65618.0,65617.0,0.02448]
[1718864730354,1.712639,65618.0,65617.0,0.02448]
[1718864730574,1.78107055,65618.0,65617.0,0.02448]
[1718864731620,0.156257,65618.0,65617.0,0.17360122]
[1718864731817,0.461051,65618.0,65617.0,0.17360122]
[1718864732385,0.466051,65618.0,65617.0,0.17360122]
[1718864732803,0.458051,65618.0,65617.0,0.17360122]
[1718864733007,0.460051,65618.0,65617.0,0.0973195]
[1718864733293,0.464051,65618.0,65617.0,0.0973195]
[1718864734214,0.00686,65618.0,65617.0,0.0973195]
[1718864735321,0.159257,65618.0,65617.0,0.0973195]
[1718864737921,0.464051,65618.0,65617.0,0.0973195]
[1718864738507,0.153257,65618.0,65617.0,0.0973195]
[1718864738677,0.153257,65618.0,65617.0,0.1003195]
[1718864738879,0.153257,65618.0,65617.0,0.1013195]
[1718864739084,0.762845,65618.0,65617.0,0.1013195]
[1718864739516,0.762845,65618.0,65617.0,0.07848]
[1718864740103,0.762845,65618.0,65617.0,0.07448]
[1718864740234,0.762845,65618.0,65617.0,0.07648]
[1718864740638,0.762845,65618.0,65617.0,0.0943195]
[1718864741254,0.762845,65618.0,65617.0,0.07648]
[1718864741665,0.762845,65618.0,65617.0,0.07448]
[1718864742153,0.762845,65618.0,65617.0,0.07648]
[1718864743160,1.633239,65618.0,65617.0,0.07648]
[1718864743984,1.633239,65618.0,65617.0,0.0943195]
[1718864744336,1.623239,65618.0,65617.0,0.0943195]
[1718864744609,1.623239,65618.0,65617.0,0.0993195]
[1718864744735,1.318445,65618.0,65617.0,0.0993195]
[1718864744940,0.152395,65619.0,65618.0,0.0973195]
[1718864745235,0.457184,65619.0,65618.0,0.0973195]
[1718864746106,0.152395,65619.0,65618.0,0.0973195]
[1718864746312,0.457165,65622.0,65621.0,0.0728395]
[1718864746512,0.557165,65622.0,65621.0,0.0728395]
[1718864747105,0.557165,65622.0,65621.0,0.0678395]
[1718864747381,0.557165,65622.0,65621.0,0.0728395]
[1718864747557,0.557165,65622.0,65621.0,0.0678395]
[1718864748967,0.559165,65622.0,65621.0,0.0678395]
[1718864749329,0.563165,65622.0,65621.0,0.0678395]
[1718864749694,0.24042238,65622.0,65621.0,0.0678395]
[1718864749898,0.54519838,65622.0,65621.0,0.0728395]
[1718864751473,0.54119838,65622.0,65621.0,0.0728395]
[1718864751916,0.53919838,65622.0,65621.0,0.0728395]
[1718864752138,0.23442238,65622.0,65621.0,0.0728395]
[1718864752358,0.23442238,65622.0,65621.0,0.0748395]
[1718864754106,0.13442238,65622.0,65621.0,0.0993195]
[1718864754307,0.20283538,65622.0,65621.0,0.0993195]
[1718864754973,0.068413,65623.0,65622.0,0.0228395]
[1718864755172,0.1,65623.0,65622.0,0.0228395]
[1718864755411,0.252385,65623.0,65622.0,0.0728395]
[1718864755778,0.252385,65623.0,65622.0,0.0973195]
[1718864755985,0.36665536,65623.0,65622.0,0.0973195]
[1718864756322,0.252385,65623.0,65622.0,0.0973195]
[1718864756876,0.253385,65623.0,65622.0,0.0973195]
[1718864759350,0.36771534,65623.0,65622.0,0.0973195]
[1718864760518,0.36671534,65623.0,65622.0,0.0973195]
[1718864760904,0.36671534,65623.0,65622.0,0.0423195]
[1718864761094,0.36671534,65623.0,65622.0,0.02448]
[1718864761095,0.97625734,65623.0,65622.0,0.02448]
[1718864761290,0.761937,65622.0,65621.0,0.07448]
[1718864761496,0.87626798,65622.0,65621.0,0.07448]
[1718864761702,1.75304298,65622.0,65621.0,0.02448]
[1718864761916,1.65944891,65622.0,65621.0,0.02448]
[1718864762139,1.638712,65622.0,65621.0,0.02448]
[1718864762910,1.638712,65622.0,65621.0,0.004]
[1718864763185,1.738712,65622.0,65621.0,0.004]
[1718864763369,1.753712,65622.0,65621.0,0.006]
[1718864763820,1.738712,65622.0,65621.0,0.006]
[1718864764030,3.61328026,65622.0,65621.0,0.004]
[1718864764246,3.36828403,65622.0,65621.0,0.004]
[1718864764477,1.066859,65613.0,65612.0,0.02448]
[1718864764702,0.152415,65610.0,65609.0,0.02448]
[1718864764946,0.211415,65610.0,65609.0,0.02448]
[1718864765152,0.821077,65610.0,65609.0,0.02448]
[1718864766005,1.126908,65610.0,65609.0,0.02448]
[1718864766144,0.76209,65609.0,65608.0,0.02448]
[1718864766339,1.066926,65609.0,65608.0,0.02448]
[1718864766744,0.06,65610.0,65606.0,0.02448]
[1718864766745,0.60969,65607.0,65606.0,0.02448]
[1718864766952,0.8555,65606.0,65605.0,0.02448]
[1718864767150,1.004375,65606.0,65605.0,0.02448]
[1718864767350,1.714075,65606.0,65605.0,0.02448]
[1718864768305,1.73481191,65606.0,65605.0,0.02648]
[1718864768489,1.729075,65606.0,65605.0,0.002]
[1718864768764,1.74981191,65606.0,65605.0,0.002]
[1718864768965,1.88703753,65606.0,65605.0,0.002]
[1718864769313,1.82601191,65606.0,65605.0,0.002]
[1718864769853,1.82601191,65606.0,65605.0,0.006]
[1718864770725,1.82601191,65606.0,65605.0,0.004]
[1718864770939,1.83301191,65606.0,65605.0,0.005]
[1718864771068,1.89201191,65606.0,65605.0,0.005]
[1718864771268,1.89201191,65606.0,65605.0,0.001]
[1718864771675,0.762182,65601.0,65600.0,0.0473195]
[1718864771872,0.95353054,65601.0,65600.0,0.0423195]
[1718864772074,0.95353054,65601.0,65600.0,0.0473195]
[1718864772294,0.41905368,65603.0,65602.0,0.0973195]
[1718864772295,0.24378054,65603.0,65602.0,0.0973195]
[1718864772904,0.152432,65603.0,65602.0,0.0973195]
[1718864773310,0.22092042,65603.0,65602.0,0.0973195]
[1718864774125,0.155432,65603.0,65602.0,0.0973195]
[1718864774972,0.156432,65603.0,65602.0,0.0973195]
[1718864775785,0.155432,65603.0,65602.0,0.0973195]
[1718864776156,0.003,65603.0,65602.0,0.6949195]
[1718864776360,0.304831,65610.0,65609.0,0.0973195]
[1718864776361,0.2208847,65610.0,65609.0,0.0973195]
[1718864776563,0.152415,65610.0,65609.0,0.6719195]
[1718864778229,0.155415,65610.0,65609.0,0.6719195]
[1718864778886,0.156415,65610.0,65609.0,0.6719195]
[1718864779106,0.156415,65610.0,65609.0,0.6669195]
[1718864779237,0.461246,65610.0,65609.0,0.4230195]
[1718864779680,0.462246,65610.0,65609.0,0.4290195]
[1718864779863,0.461246,65610.0,65609.0,0.4230195]
[1718864780316,0.458246,65610.0,65609.0,0.4230195]
[1718864780673,0.458246,65610.0,65609.0,0.4240195]
[1718864781070,0.458246,65610.0,65609.0,0.4230195]
[1718864781273,0.459246,65610.0,65609.0,0.4300195]
[1718864781478,0.459246,65610.0,65609.0,0.4350195]
[1718864782258,0.457246,65610.0,65609.0,0.4180195]
[1718864782396,0.458246,65610.0,65609.0,0.0993195]
[1718864782792,0.457246,65610.0,65609.0,0.0923195]
[1718864782989,0.457246,65610.0,65609.0,0.0993195]
[1718864783213,0.458246,65610.0,65609.0,0.0993195]
[1718864783780,0.458246,65610.0,65609.0,0.1043195]
[1718864784366,0.457246,65610.0,65609.0,0.0973195]
[1718864784711,0.458246,65610.0,65609.0,0.1043195]
[1718864786145,1.310908,65610.0,65609.0,0.0543195]
[1718864786356,1.369908,65610.0,65609.0,0.0543195]
[1718864790004,1.126908,65610.0,65609.0,0.0543195]
[1718864792595,1.19536862,65610.0,65609.0,0.0543195]
[1718864794371,1.126908,65610.0,65609.0,0.0543195]
[1718864795729,1.126908,65610.0,65609.0,0.012]
[1718864795900,1.126908,65610.0,65609.0,0.03648]
[1718864796102,1.141908,65610.0,65609.0,0.03648]
[1718864796707,1.23318883,65610.0,65609.0,0.03648]
[1718864799528,1.141908,65610.0,65609.0,0.03648]
[1718864800236,1.141908,65610.0,65609.0,0.037426]
[1718864800449,1.218108,65610.0,65609.0,0.037426]
[1718864800871,1.41182278,65610.0,65609.0,0.037426]
[1718864801815,1.39682278,65610.0,65609.0,0.037426]
[1718864802369,1.28265865,65610.0,65609.0,0.037426]
[1718864803544,1.20645865,65610.0,65609.0,0.037426]
[1718864804317,1.14745865,65610.0,65609.0,0.037426]
[1718864804518,1.14745865,65610.0,65609.0,0.0552655]
[1718864804519,0.84262765,65610.0,65609.0,0.0552655]
[1718864804740,0.9568782,65610.0,65609.0,0.6048655]
[1718864805170,0.84262765,65610.0,65609.0,0.6048655]
[1718864805320,0.9568782,65610.0,65609.0,0.6048655]
[1718864805545,0.6520472,65610.0,65609.0,0.6548655]
[1718864805743,0.6520472,65610.0,65609.0,0.6598655]
[1718864808211,0.53779665,65610.0,65609.0,0.6598655]
[1718864808800,0.53779665,65610.0,65609.0,0.637026]
[1718864808801,0.65212793,65610.0,65609.0,0.637026]
[1718864808998,0.53779665,65610.0,65609.0,0.637026]
[1718864809403,0.53779665,65610.0,65609.0,0.6548655]
[1718864809750,1.14745865,65610.0,65609.0,0.012946]
[1718864809949,2.40940491,65610.0,65609.0,0.012946]
[1718864810165,2.46473077,65610.0,65609.0,0.012946]
[1718864810392,2.64942998,65610.0,65609.0,0.012946]
[1718864810605,2.49503712,65610.0,65609.0,0.012946]
[1718864810780,2.57123712,65610.0,65609.0,0.007946]
[1718864810984,2.7256229,65610.0,65609.0,0.007946]
[1718864811196,2.57423712,65610.0,65609.0,0.000946]
[1718864811603,2.57023712,65610.0,65609.0,0.000946]
[1718864811786,2.36235712,65610.0,65609.0,0.001946]
[1718864811991,2.38135712,65610.0,65609.0,0.002946]
[1718864812333,3.12143812,65610.0,65609.0,0.001946]
[1718864813039,3.14443812,65610.0,65609.0,0.001946]
[1718864813235,3.22659862,65610.0,65609.0,0.001946]
[1718864813361,3.3809844,65610.0,65609.0,0.001946]
[1718864813559,3.6948154,65610.0,65609.0,0.002946]
[1718864813762,3.69298376,65610.0,65609.0,0.002946]
[1718864815518,1.970451,65600.0,65599.0,0.000946]
[1718864815715,2.33631262,65600.0,65599.0,0.000946]
[1718864816076,3.10186962,65600.0,65599.0,0.000946]
[1718864816486,3.07056912,65600.0,65599.0,0.000946]
[1718864816692,3.10174241,65600.0,65599.0,0.000946]
[1718864817122,2.91894241,65600.0,65599.0,0.000946]
[1718864817695,2.92294241,65600.0,65599.0,0.000946]
[1718864818077,2.92594241,65600.0,65599.0,0.000946]
[1718864819666,2.94881481,65600.0,65599.0,0.000946]
[1718864820499,2.92594241,65600.0,65599.0,0.000946]
[1718864821577,3.4672621,65600.0,65599.0,0.000946]
[1718864821809,2.8477106,65600.0,65599.0,0.000946]
[1718864822005,5.55531905,65600.0,65599.0,0.000946]
[1718864822214,5.51403236,65600.0,65599.0,0.000946]
[1718864822417,5.6665865,65600.0,65599.0,0.000946]
[1718864822626,5.74804029,65600.0,65599.0,0.000946]
[1718864822915,5.78570983,65600.0,65599.0,0.000946]
[1718864823173,5.79370983,65600.0,65599.0,0.000946]
[1718864823314,5.80470983,65600.0,65599.0,0.000946]
[1718864823517,5.79370983,65600.0,65599.0,0.000946]
[1718864823713,5.75204029,65600.0,65599.0,0.000946]
[1718864823932,5.69124305,65600.0,65599.0,0.000946]
[1718864824628,5.25697391,65600.0,65599.0,0.000946]
[1718864824854,3.53640342,65600.0,65599.0,0.000946]
[1718864825054,1.88692488,65600.0,65599.0,0.000946]
[1718864825289,2.85720288,65600.0,65599.0,0.000946]
[1718864825429,2.68698912,65600.0,65599.0,0.000946]
[1718864825642,1.98044429,65600.0,65599.0,0.000946]
[1718864825850,2.05444429,65600.0,65599.0,0.000946]
[1718864826058,1.38236129,65600.0,65599.0,0.000946]
[1718864826252,1.340188,65600.0,65599.0,0.000946]
[1718864826455,1.585142,65600.0,65599.0,0.000946]
[1718864826982,1.522142,65600.0,65599.0,0.000946]
[1718864827185,1.531142,65600.0,65599.0,0.000946]
[1718864827547,1.349188,65600.0,65599.0,0.000946]
[1718864827828,1.05531,65600.0,65599.0,0.000946]
[1718864828027,1.16936779,65600.0,65599.0,0.580446]
[1718864829154,1.15836779,65600.0,65599.0,0.580446]
[1718864829362,1.46324579,65600.0,65599.0,0.580446]
[1718864829519,1.44724579,65600.0,65599.0,0.580446]
[1718864829704,1.46824579,65600.0,65599.0,0.000946]
[1718864829902,1.42880867,65600.0,65599.0,0.000946]
[1718864830106,1.54286669,65600.0,65599.0,0.000946]
[1718864830331,1.46924602,65600.0,65599.0,0.000946]
[1718864830695,1.38704602,65600.0,65599.0,0.000946]
[1718864830884,1.38804602,65600.0,65599.0,0.000946]
[1718864831093,1.39504602,65600.0,65599.0,0.000946]
[1718864831404,1.39204602,65600.0,65599.0,0.000946]
[1718864832638,1.40004602,65600.0,65599.0,0.000946]
[1718864833163,1.39304602,65600.0,65599.0,0.000946]
[1718864833688,1.40204602,65600.0,65599.0,0.000946]
[1718864834060,1.40328675,65600.0,65599.0,0.000946]
[1718864835137,1.38828675,65600.0,65599.0,0.000946]
[1718864835343,1.32928675,65600.0,65599.0,0.000946]
[1718864838455,1.21522873,65600.0,65599.0,0.000946]
[1718864839628,1.23022873,65600.0,65599.0,0.000946]
[1718864839910,1.24901373,65600.0,65599.0,0.000946]
[1718864843114,1.23401373,65600.0,65599.0,0.000946]
[1718864844500,0.61960859,65600.0,65599.0,0.4073655]
[1718864844864,0.67286531,65600.0,65599.0,0.6599655]
[1718864844999,0.58155773,65600.0,65599.0,0.6599655]
[1718864846402,0.67286531,65600.0,65599.0,0.6599655]
[1718864849410,0.58155773,65600.0,65599.0,0.6599655]
[1718864849701,0.58155773,65600.0,65599.0,0.6354855]
[1718864849915,0.58155773,65600.0,65599.0,0.6599655]
[1718864851363,0.48155773,65600.0,65599.0,0.6599655]
[1718864851562,0.023,65600.0,65599.0,0.6599655]
[1718864851789,0.175439,65600.0,65599.0,0.6599655]
[1718864853271,0.2668116,65600.0,65599.0,0.6599655]
[1718864854393,0.26685987,65600.0,65599.0,0.6599655]
[1718864855408,0.480317,65600.0,65599.0,0.6599655]
[1718864856203,0.59450189,65600.0,65599.0,0.6599655]
[1718864857377,0.26687936,65600.0,65599.0,0.6599655]
[1718864857912,0.175439,65600.0,65599.0,0.6599655]
[1718864858115,0.2668773,65600.0,65599.0,0.6599655]
[1718864858641,0.5717553,65600.0,65599.0,0.6599655]
[1718864858759,0.480317,65600.0,65599.0,0.6599655]
[1718864859591,0.57175213,65600.0,65599.0,0.6599655]
[1718864859811,0.480317,65600.0,65599.0,0.6599655]
[1718864864689,0.481177,65600.0,65599.0,0.6599655]
[1718864866401,0.786055,65600.0,65599.0,0.6599655]
[1718864867188,0.786055,65600.0,65599.0,0.0982655]
[1718864867519,0.786055,65600.0,65599.0,0.0932655]
[1718864868361,0.786055,65600.0,65599.0,0.0982655]
[1718864868524,0.90033739,65600.0,65599.0,0.0982655]
[1718864870342,0.786055,65600.0,65599.0,0.0982655]